bitfinex-derivatives/quotes_BTCF0:USTF0_20251216
["timestamp","ask_amount","ask_price","bid_price","bid_amount"]
[1765903944394,0.54874,87689.0,87688.0,0.0114065]
[1765903944598,0.28312,87686.0,87685.0,0.5463169]
[1765903944808,0.28320409,87691.0,87690.0,0.2838863]
[1765903945100,0.28320409,87691.0,87690.0,0.5463163]
[1765903945300,0.28320409,87691.0,87690.0,0.53491]
[1765903945502,0.54882409,87691.0,87690.0,0.53491]
[1765903945997,0.28312,87685.0,87684.0,0.27248]
[1765903946201,0.54874,87685.0,87684.0,0.53491]
[1765903946801,0.560147,87684.0,87683.0,0.3608]
[1765903947594,0.54874,87683.0,87682.0,0.00017114]
[1765903949894,0.54974,87683.0,87682.0,0.00017114]
[1765903950294,0.55074,87683.0,87682.0,0.00017114]
[1765903951295,0.54974,87683.0,87682.0,0.00017114]
[1765903951494,0.55074,87683.0,87682.0,0.00017114]
[1765903954203,0.54974,87683.0,87682.0,0.00017114]
[1765903954402,0.55074,87683.0,87682.0,0.00017114]
[1765903954601,0.54974,87683.0,87682.0,0.00017114]
[1765903954808,0.55074,87683.0,87682.0,0.00017114]
[1765903957604,0.5222506,87657.0,87656.0,0.3722107]
[1765903957803,0.52234996,87657.0,87656.0,0.8869807]
[1765903958005,9.936e-05,87657.0,87656.0,0.8869807]
[1765903958911,9.936e-05,87657.0,87656.0,0.8879807]
[1765903959211,0.00017114,87665.0,87664.0,0.5261797]
[1765903959398,0.00017114,87665.0,87664.0,0.8869797]
[1765903960306,0.51084,87686.0,87685.0,0.5261769]
[1765903960607,0.3608,87696.0,87683.0,0.3608]
[1765903960802,0.5222461,87691.0,87690.0,0.40483]
[1765903960999,0.5222461,87691.0,87690.0,0.66647]
[1765903961400,0.3608,87696.0,87690.0,0.66647]
[1765903961401,0.5222442,87706.0,87705.0,0.51477]
[1765903961604,0.51084,87706.0,87705.0,0.51477]
[1765903962106,0.51101104,87714.0,87713.0,0.5261733]
[1765903962306,0.00017104,87714.0,87713.0,0.5261733]
[1765903962703,0.522242,87723.0,87722.0,0.25313]
[1765903963705,0.51084,87723.0,87722.0,0.51477]
[1765903964199,0.51084,87723.0,87722.0,0.5261721]
[1765903964398,0.51084,87723.0,87722.0,0.51477]
[1765903966204,0.00017104,87731.0,87721.0,0.3608]
[1765903966205,0.5222413,87729.0,87728.0,0.51477]
[1765903967319,0.5232413,87729.0,87728.0,0.51477]
[1765903968012,0.5242413,87729.0,87728.0,0.51477]
[1765903969006,0.5242413,87729.0,87728.0,0.25313]
[1765903969208,0.5222421,87722.0,87721.0,0.87557]
[1765903970516,0.5222421,87722.0,87721.0,0.87757]
[1765903971214,0.5222421,87722.0,87721.0,0.3628]
[1765903971411,0.5222421,87722.0,87721.0,0.002]
[1765903972929,0.5222433,87713.0,87712.0,0.87557]
[1765903978612,0.25599,87718.0,87717.0,0.51477]
[1765903979225,0.51084,87718.0,87717.0,0.51477]
[1765903979626,0.5222433,87713.0,87712.0,0.87557]
[1765903979821,0.2673933,87713.0,87712.0,0.87557]
[1765903980026,0.5222433,87713.0,87712.0,0.87557]
[1765903980224,0.5222433,87713.0,87712.0,0.3608]
[1765903980727,0.2673942,87706.0,87705.0,1.02744081]
[1765903980924,0.2673942,87706.0,87705.0,0.36097081]
[1765903980925,0.5222442,87706.0,87705.0,0.36097081]
[1765903981126,0.5222442,87706.0,87705.0,0.00017081]
[1765903982932,0.5242442,87706.0,87705.0,0.00017081]
[1765903983829,0.5262442,87706.0,87705.0,0.00017081]
[1765903984428,0.5242442,87706.0,87705.0,0.00017081]
[1765903984629,0.5262442,87706.0,87705.0,0.00017081]
[1765903984931,0.5242442,87706.0,87705.0,0.00017081]
[1765903985228,0.5262442,87706.0,87705.0,0.00017081]
[1765903986130,0.5222442,87706.0,87705.0,0.00017081]
[1765903986338,0.4825963,87690.0,87689.0,0.3608]
[1765903986728,0.4825976,87680.0,87679.0,0.03056207]
[1765903986929,0.4825976,87680.0,87677.0,0.3608]
[1765903986930,0.47119,87678.0,87677.0,0.3608]
[1765903987324,0.6104,87678.0,87677.0,0.3608]
[1765903988334,0.6104,87678.0,87669.0,0.15187104]
[1765903988335,0.4825989,87670.0,87669.0,0.63069104]
[1765903988637,0.4825989,87670.0,87669.0,0.24261104]
[1765903988935,0.4825989,87670.0,87669.0,0.00017104]
[1765903991440,0.8433989,87670.0,87669.0,0.00017104]
[1765903992134,0.4826012,87652.0,87651.0,0.60324]
[1765903992636,0.4826012,87652.0,87651.0,0.83962]
[1765903992834,0.4826012,87652.0,87651.0,0.97796]
[1765903993229,0.4826021,87645.0,87644.0,0.47892253]
[1765903993635,0.8414021,87645.0,87644.0,0.00010253]
[1765903993940,0.22963,87627.0,87626.0,0.4902346]
[1765903994127,0.47119,87627.0,87626.0,0.4902346]
[1765903994437,0.0114143,87629.0,87628.0,0.47882]
[1765903994636,0.48277454,87635.0,87634.0,0.47882]
[1765903994840,0.00027367,87635.0,87634.0,0.47882]
[1765903995040,1.07864,87645.0,87633.0,0.3608]
[1765903995041,0.22963,87645.0,87644.0,0.47882]
[1765903995230,0.22963,87651.0,87650.0,0.61716]
[1765903995628,0.3608,87665.0,87653.0,0.47882]
[1765903995629,0.59043,87654.0,87653.0,0.47882]
[1765903996038,0.83199,87654.0,87653.0,0.47882]
[1765903996432,0.47119,87654.0,87653.0,0.47882]
[1765903997234,0.23063,87654.0,87653.0,0.47882]
[1765903997437,0.001,87654.0,87653.0,0.83962]
[1765903999142,0.001,87654.0,87653.0,0.84062]
[1765903999642,0.00017114,87662.0,87661.0,0.49023]
[1765903999842,0.47136114,87662.0,87661.0,0.47882]
[1765904000045,0.47136114,87662.0,87653.0,0.84062]
[1765904000046,0.482601,87654.0,87653.0,0.84062]
[1765904000347,0.241041,87654.0,87653.0,0.84062]
[1765904000735,0.2410406,87657.0,87656.0,0.47882]
[1765904000933,0.4826006,87657.0,87656.0,0.47882]
[1765904003537,0.4826006,87657.0,87656.0,0.47982]
[1765904003739,0.2410401,87661.0,87660.0,0.61716]
[1765904004045,0.4826001,87661.0,87660.0,0.61716]
[1765904004241,0.4826001,87661.0,87660.0,0.47882]
[1765904004437,0.482601,87654.0,87653.0,0.83962]
[1765904005246,0.011411,87654.0,87653.0,0.83962]
[1765904005443,0.241041,87654.0,87653.0,0.83962]
[1765904005748,0.482601,87654.0,87653.0,0.83962]
[1765904006046,0.482601,87654.0,87653.0,0.84062]
[1765904006636,0.482601,87654.0,87653.0,0.3618]
[1765904007550,0.011411,87654.0,87653.0,0.84062]
[1765904007746,0.482601,87654.0,87653.0,0.84062]
[1765904007952,0.241041,87654.0,87653.0,0.84162]
[1765904008147,0.011411,87654.0,87653.0,0.84162]
[1765904009152,0.48277104,87662.0,87661.0,0.47882]
[1765904010051,0.00017114,87662.0,87661.0,0.47882]
[1765904010251,0.00017114,87662.0,87661.0,0.49027619]
[1765904010551,0.00217114,87662.0,87661.0,0.49027619]
[1765904011258,0.00117114,87662.0,87661.0,0.85107619]
[1765904011555,0.00117114,87662.0,87661.0,0.85207619]
[1765904011751,0.3608,87673.0,87661.0,0.85207619]
[1765904011752,0.6018386,87673.0,87672.0,0.47882]
[1765904011959,0.8433986,87673.0,87672.0,0.47882]
[1765904012454,0.0114099,87662.0,87661.0,0.84062]
[1765904012652,0.0114099,87662.0,87661.0,0.87128094]
[1765904012852,0.4825999,87662.0,87661.0,0.84062]
[1765904013049,0.4825999,87662.0,87661.0,0.001]
[1765904013552,0.4825999,87662.0,87653.0,0.83979114]
[1765904013553,0.482601,87654.0,87653.0,0.83979114]
[1765904013755,0.47119,87654.0,87653.0,0.83979114]
[1765904013950,0.8125795,87665.0,87664.0,0.43717]
[1765904014156,0.00017114,87670.0,87669.0,0.56216]
[1765904014157,0.22611114,87670.0,87669.0,0.56216]
[1765904014554,0.23752004,87670.0,87669.0,0.56216]
[1765904014855,0.45242004,87670.0,87669.0,0.56216]
[1765904016754,0.45242004,87670.0,87664.0,0.001]
[1765904016755,0.44084,87665.0,87664.0,0.001]
[1765904017260,0.11018,87669.0,87654.0,0.43656]
[1765904017261,0.4522508,87655.0,87654.0,0.43656]
[1765904018243,0.4532495,87665.0,87664.0,0.21075]
[1765904019053,0.0124095,87665.0,87664.0,0.43656]
[1765904020055,0.001,87665.0,87664.0,0.43656]
[1765904020254,0.001,87665.0,87662.0,0.0114098]
[1765904020255,0.0114094,87666.0,87665.0,0.4479695]
[1765904020457,0.01158004,87670.0,87669.0,0.56216]
[1765904020757,0.00017114,87670.0,87669.0,0.56216]
[1765904021055,0.00017114,87670.0,87669.0,0.59289963]
[1765904021257,0.71792,87687.0,87676.0,0.43656]
[1765904021258,0.0114081,87677.0,87676.0,0.43656]
[1765904021958,0.4522481,87677.0,87676.0,0.43656]
[1765904022654,0.2373481,87677.0,87676.0,0.43656]
[1765904023353,0.4522472,87683.0,87682.0,0.0114071]
[1765904023559,0.0114072,87683.0,87682.0,0.4479671]
[1765904023754,0.00017114,87685.0,87684.0,0.43656]
[1765904023951,0.00017114,87685.0,87684.0,0.46729299]
[1765904024151,0.00017114,87685.0,87684.0,0.43656]
[1765904025363,0.22611114,87685.0,87684.0,0.46727161]
[1765904025559,0.00017114,87685.0,87684.0,0.46727161]
[1765904026460,0.00017114,87685.0,87684.0,0.43756]
[1765904026667,0.00117114,87685.0,87684.0,0.43756]
[1765904027264,0.00217114,87685.0,87684.0,0.447967]
[1765904028452,0.44301114,87685.0,87684.0,0.43656]
[1765904028657,0.00217114,87685.0,87684.0,0.43656]
[1765904029364,0.00217114,87685.0,87684.0,0.46727161]
[1765904029660,0.00217114,87685.0,87680.0,0.1256]
[1765904029661,0.813045,87700.0,87699.0,0.43656]
[1765904029868,0.452246,87693.0,87692.0,0.43656]
[1765904030068,0.80164,87700.0,87699.0,0.43656]
[1765904030270,0.452245,87700.0,87699.0,0.43656]
[1765904030872,0.454245,87700.0,87699.0,0.43656]
[1765904031252,0.453245,87700.0,87699.0,0.43656]
[1765904031453,0.454245,87700.0,87699.0,0.43656]
[1765904031756,0.452246,87692.0,87691.0,0.43673104]
[1765904033365,0.3628,87700.0,87691.0,0.43673104]
[1765904033366,0.44284,87700.0,87699.0,0.4479651]
[1765904033560,0.22594,87700.0,87699.0,0.43656]
[1765904033767,0.4522444,87705.0,87702.0,0.0114047]
[1765904033961,0.4522444,87705.0,87704.0,0.43656]
[1765904035970,0.00017104,87708.0,87707.0,0.21075]
[1765904036172,0.00017104,87708.0,87707.0,0.8087641]
[1765904036557,0.0114028,87717.0,87716.0,0.4479629]
[1765904036871,0.2373425,87720.0,87719.0,0.4479624]
[1765904037070,0.2373425,87720.0,87719.0,0.43656]
[1765904037370,0.0114025,87720.0,87719.0,0.43656]
[1765904038666,0.4522417,87725.0,87724.0,0.43656]
[1765904038875,0.00017104,87728.0,87727.0,0.43656]
[1765904038876,0.01157244,87728.0,87727.0,0.43656]
[1765904040168,0.00017104,87728.0,87727.0,0.43656]
[1765904041274,0.00017104,87728.0,87707.0,0.3608]
[1765904041275,0.44084,87712.0,87707.0,0.3608]
[1765904042472,0.44084,87712.0,87711.0,0.21092104]
[1765904043273,0.44184,87712.0,87711.0,0.21092104]
[1765904043479,0.44184,87712.0,87711.0,0.00017104]
[1765904043688,0.44284,87712.0,87711.0,0.21092104]
[1765904043879,0.4574461,87691.0,87690.0,0.78957]
[1765904044075,0.2349475,87682.0,87681.0,0.4401774]
[1765904044380,0.0114075,87682.0,87681.0,0.42877]
[1765904044683,0.0114068,87687.0,87686.0,0.42877]
[1765904044985,0.44621104,87695.0,87694.0,0.42877]
[1765904045185,0.44621104,87695.0,87694.0,0.78957]
[1765904045186,0.00017104,87695.0,87694.0,0.78957]
[1765904046585,0.00017104,87695.0,87694.0,0.79057]
[1765904046985,0.44621104,87695.0,87694.0,0.79057]
[1765904047185,0.44621104,87695.0,87694.0,0.3608]
[1765904047378,0.44621104,87695.0,87694.0,0.3628]
[1765904047983,0.44621104,87695.0,87694.0,0.57937]
[1765904048189,0.44721104,87695.0,87694.0,0.79057]
[1765904048680,0.44721104,87695.0,87694.0,0.57837]
[1765904048883,0.44721104,87695.0,87678.0,0.00017104]
[1765904048884,0.457447,87684.0,87678.0,0.01157874]
[1765904049084,0.457447,87684.0,87678.0,0.00017104]
[1765904049283,0.4574477,87679.0,87678.0,0.00017104]
[1765904049484,0.4574477,87679.0,87678.0,0.42894104]
[1765904049990,0.44604,87679.0,87678.0,0.00017104]
[1765904050378,0.44604,87679.0,87663.0,0.3608]
[1765904050379,0.22354,87664.0,87663.0,0.78957]
[1765904050578,0.22354,87670.0,87669.0,0.42877]
[1765904050777,0.22354,87670.0,87669.0,0.440179]
[1765904051073,0.44804,87679.0,87678.0,0.42877]
[1765904051278,0.002,87679.0,87678.0,0.42877]
[1765904051487,0.001,87679.0,87678.0,0.42877]
[1765904051984,0.00017104,87687.0,87686.0,0.42877]
[1765904052185,0.01157774,87687.0,87686.0,0.42877]
[1765904052386,0.01157774,87687.0,87686.0,0.4401768]
[1765904052387,0.44621104,87687.0,87686.0,0.4401768]
[1765904055390,0.44604,87679.0,87678.0,0.0306707]
[1765904055588,0.44604,87679.0,87678.0,0.42877]
[1765904056581,0.44604,87679.0,87676.0,0.3608]
[1765904056582,0.22354,87677.0,87676.0,0.3608]
[1765904056793,0.44604,87677.0,87676.0,0.3608]
[1765904057084,0.44604,87677.0,87676.0,0.57837]
[1765904057995,0.44704,87677.0,87676.0,0.3608]
[1765904058486,0.44704,87677.0,87670.0,0.00017104]
[1765904058487,0.4574487,87671.0,87670.0,0.00017104]
[1765904059882,0.002,87671.0,87670.0,0.42894104]
[1765904060083,0.004,87671.0,87670.0,0.42894104]
[1765904060685,0.457448,87677.0,87676.0,0.42877]
[1765904060883,0.457448,87677.0,87676.0,0.4401779]
[1765904061795,0.457448,87677.0,87676.0,0.8009779]
[1765904061796,0.44604,87677.0,87676.0,0.8009779]
[1765904062889,0.44704,87677.0,87676.0,0.8009779]
[1765904063092,0.001,87677.0,87676.0,0.8009779]
[1765904063292,0.458448,87677.0,87676.0,0.3608]
[1765904063879,0.234908,87677.0,87670.0,0.00017104]
[1765904064093,0.4574487,87671.0,87670.0,0.21774104]
[1765904065192,0.4574487,87671.0,87670.0,0.42894104]
[1765904066084,0.4574487,87671.0,87670.0,0.00017104]
[1765904066289,0.4584487,87671.0,87670.0,0.00017104]
[1765904067293,0.4574487,87671.0,87670.0,0.00017104]
[1765904067492,0.4594487,87671.0,87670.0,0.00017104]
[1765904068198,0.4594487,87671.0,87670.0,0.21774104]
[1765904068400,0.4594487,87671.0,87670.0,0.00017104]
[1765904068893,0.4574487,87671.0,87670.0,0.00017104]
[1765904069097,0.4594487,87671.0,87670.0,0.00017104]
[1765904069396,0.4604487,87671.0,87670.0,0.00017104]
[1765904070097,0.4584487,87671.0,87670.0,0.00017104]
[1765904070298,0.457451,87654.0,87653.0,0.372211]
[1765904070799,0.12657,87660.0,87649.0,8.325e-05]
[1765904070800,0.57261,87650.0,87649.0,8.325e-05]
[1765904071301,0.57261,87650.0,87649.0,0.42885325]
[1765904071599,0.22354,87650.0,87649.0,0.42885325]
[1765904072499,0.22354,87650.0,87649.0,0.43085325]
[1765904072686,0.4574514,87651.0,87650.0,0.4401815]
[1765904072883,0.57261,87650.0,87649.0,0.00308325]
[1765904073296,0.57261,87650.0,87649.0,0.01449485]
[1765904073600,0.57261,87650.0,87649.0,0.00308325]
[1765904073787,0.57261,87650.0,87649.0,0.00108325]
[1765904074388,0.57261,87650.0,87649.0,0.21716325]
[1765904074587,0.57261,87650.0,87649.0,0.42689325]
[1765904075597,0.57261,87650.0,87649.0,0.42889325]
[1765904076500,0.00017104,87658.0,87657.0,0.42469]
[1765904076896,0.00017104,87658.0,87657.0,0.45536998]
[1765904077285,0.3608,87670.0,87669.0,0.436099]
[1765904077486,0.4278883,87675.0,87674.0,0.42469]
[1765904078395,0.41648,87675.0,87674.0,0.42469]
[1765904078694,0.00017104,87683.0,87682.0,0.4360973]
[1765904079987,0.00317104,87683.0,87682.0,0.4360973]
[1765904080187,0.22028104,87683.0,87682.0,0.42469]
[1765904080389,0.22028104,87683.0,87676.0,0.21496]
[1765904080390,0.41648,87677.0,87676.0,0.21496]
[1765904080588,0.4278887,87672.0,87671.0,0.42469]
[1765904081286,0.22028104,87683.0,87682.0,0.4360973]
[1765904081492,0.42265104,87683.0,87682.0,0.4360973]
[1765904082294,0.41965104,87683.0,87682.0,0.4360973]
[1765904082502,0.41665104,87683.0,87682.0,0.42469]
[1765904083085,0.42265104,87683.0,87682.0,0.42469]
[1765904084399,0.42265104,87683.0,87681.0,0.0114074]
[1765904084400,0.41648,87682.0,87681.0,0.0114074]
[1765904084602,0.41648,87682.0,87681.0,0.42469]
[1765904085097,0.4278881,87676.0,87675.0,0.81617398]
[1765904085297,0.4278881,87676.0,87675.0,0.78549]
[1765904086390,0.4328881,87676.0,87675.0,0.78549]
[1765904087104,0.005,87676.0,87675.0,0.78549]
[1765904087789,0.42148,87676.0,87675.0,0.78549]
[1765904087995,0.42148,87676.0,87675.0,0.3608]
[1765904088200,0.41648,87673.0,87672.0,0.45537398]
[1765904088403,0.41648,87667.0,87666.0,0.00017104]
[1765904088702,0.4278893,87667.0,87666.0,0.21513104]
[1765904089089,0.21411,87667.0,87666.0,0.42486104]
[1765904089489,0.21511,87667.0,87666.0,0.42486104]
[1765904089691,0.001,87667.0,87666.0,0.45554502]
[1765904090202,0.002,87667.0,87666.0,0.45554502]
[1765904090503,0.41848,87667.0,87666.0,0.45554502]
[1765904091703,0.002,87667.0,87666.0,0.42486104]
[1765904091890,0.002,87667.0,87666.0,0.46576769]
[1765904092099,0.002,87667.0,87666.0,0.42486104]
[1765904092596,0.42805834,87683.0,87682.0,0.4360973]
[1765904094795,0.43105834,87683.0,87682.0,0.4360973]
[1765904095099,0.42265104,87683.0,87682.0,0.4360973]
[1765904095700,0.00617104,87683.0,87682.0,0.4360973]
[1765904096104,0.00493668,87683.0,87682.0,0.4360973]
[1765904096304,0.00493668,87683.0,87682.0,0.47702833]
[1765904096805,0.00493668,87683.0,87682.0,0.47700763]
[1765904098105,0.00493668,87683.0,87682.0,0.4360973]
[1765904100211,0.00493668,87683.0,87682.0,0.47700763]
[1765904101309,0.00493668,87683.0,87682.0,0.4360973]
[1765904101908,0.00017104,87691.0,87690.0,0.4360963]
[1765904102101,0.00017104,87691.0,87690.0,0.7968963]
[1765904102810,0.41665104,87691.0,87690.0,0.3608]
[1765904103001,0.41665104,87691.0,87668.0,0.06139458]
[1765904103002,0.41648,87668.0,87667.0,0.45536149]
[1765904103198,0.4278891,87668.0,87667.0,0.42469]
[1765904103601,0.4278891,87668.0,87667.0,0.21496]
[1765904103799,0.4278891,87668.0,87666.0,0.36097104]
[1765904103800,0.38118,87667.0,87666.0,0.00017104]
[1765904106005,0.3925915,87650.0,87647.0,0.3608]
[1765904106302,0.3925915,87650.0,87639.0,0.3608]
[1765904106703,0.3925915,87650.0,87640.0,0.0114126]
[1765904107213,0.3925915,87650.0,87646.0,0.011412]
[1765904107613,0.3925915,87650.0,87649.0,0.41101485]
[1765904107614,0.38218,87650.0,87649.0,0.41101485]
[1765904107816,0.38218,87650.0,87649.0,0.41301485]
[1765904108211,0.38218,87650.0,87649.0,0.00208325]
[1765904108605,0.38218,87650.0,87649.0,8.325e-05]
[1765904108807,0.38218,87650.0,87649.0,0.00108325]
[1765904109112,0.38118,87650.0,87649.0,0.00108325]
[1765904109314,0.38118,87650.0,87649.0,0.20157325]
[1765904109509,0.38218,87650.0,87649.0,8.325e-05]
[1765904110817,0.38318,87650.0,87649.0,8.325e-05]
[1765904111015,0.38218,87650.0,87649.0,8.325e-05]
[1765904111218,0.38318,87650.0,87649.0,8.325e-05]
[1765904113407,0.3925925,87642.0,87641.0,0.00017104]
[1765904113719,0.8732325,87642.0,87641.0,0.00017104]
[1765904114413,0.3925939,87631.0,87630.0,0.011414]
[1765904114613,0.39267715,87631.0,87630.0,0.011414]
[1765904115018,0.39267715,87631.0,87630.0,0.211904]
[1765904115213,0.39267715,87631.0,87630.0,0.20049]
[1765904115420,0.3925946,87626.0,87625.0,0.56129]
[1765904115622,0.3925946,87626.0,87625.0,0.76032]
[1765904115805,0.38118,87626.0,87625.0,0.76032]
[1765904116009,0.38126325,87631.0,87630.0,0.4109341]
[1765904116214,8.325e-05,87631.0,87630.0,0.4109341]
[1765904117706,8.325e-05,87631.0,87630.0,0.7727341]
[1765904118307,8.325e-05,87631.0,87630.0,0.7737341]
[1765904118911,0.38135114,87639.0,87638.0,0.39952]
[1765904119107,0.38118,87631.0,87630.0,0.76232]
[1765904119312,0.3925939,87631.0,87630.0,0.76232]
[1765904120017,0.19184114,87639.0,87638.0,0.39952]
[1765904120218,0.38135114,87639.0,87638.0,0.410933]
[1765904120425,0.38135114,87639.0,87638.0,0.39952]
[1765904121125,0.00117114,87639.0,87638.0,0.76032]
[1765904121522,0.00017114,87639.0,87638.0,0.76032]
[1765904122226,0.00017114,87639.0,87638.0,0.76132]
[1765904122720,8.324e-05,87639.0,87638.0,0.76132]
[1765904122923,8.324e-05,87639.0,87638.0,0.76032]
[1765904123124,0.38126324,87639.0,87638.0,0.76132]
[1765904123425,0.38126324,87639.0,87638.0,0.76232]
[1765904124323,0.38126324,87639.0,87638.0,0.76132]
[1765904124526,0.38126324,87639.0,87638.0,0.76032]
[1765904124825,0.38126324,87639.0,87638.0,0.76132]
[1765904125213,0.38126324,87639.0,87638.0,0.40052]
[1765904125827,0.38126324,87639.0,87638.0,0.001]
[1765904126231,0.3925939,87631.0,87630.0,0.56129]
[1765904126426,0.3925939,87631.0,87630.0,0.7717341]
[1765904127126,0.3925939,87631.0,87630.0,0.56129]
[1765904127329,0.3925939,87631.0,87630.0,0.76032]
[1765904127525,0.38118,87631.0,87630.0,0.76032]
[1765904127720,0.11984,87633.0,87632.0,0.39952]
[1765904127922,0.3925933,87637.0,87636.0,0.39952]
[1765904128121,0.3925933,87637.0,87636.0,0.4109333]
[1765904128322,0.0114133,87637.0,87636.0,0.4109333]
[1765904128527,0.19275324,87639.0,87638.0,0.39952]
[1765904129230,0.00108324,87639.0,87638.0,0.76032]
[1765904129930,0.38226324,87639.0,87638.0,0.76032]
[1765904130332,0.38226324,87639.0,87638.0,0.76132]
[1765904130926,0.38226324,87639.0,87638.0,0.76032]
[1765904131128,0.38126324,87639.0,87638.0,0.76132]
[1765904131332,0.38126324,87639.0,87638.0,0.3618]
[1765904131632,0.38126324,87639.0,87638.0,0.76132]
[1765904132026,0.38126324,87639.0,87638.0,0.76232]
[1765904133329,0.38126324,87639.0,87638.0,0.79294429]
[1765904133734,0.38126324,87639.0,87638.0,0.39342429]
[1765904134330,0.38126324,87639.0,87638.0,0.3628]
[1765904135624,0.39267614,87639.0,87638.0,0.3628]
[1765904135828,0.39267614,87639.0,87638.0,0.55316]
[1765904136338,0.39267614,87639.0,87638.0,0.74432]
[1765904136729,0.39267614,87639.0,87638.0,0.3628]
[1765904137130,0.39267614,87639.0,87638.0,0.002]
[1765904139639,0.39267614,87639.0,87638.0,0.394933]
[1765904140232,0.39267614,87639.0,87638.0,0.42571397]
[1765904140432,8.324e-05,87639.0,87638.0,0.394933]
[1765904140641,0.36854324,87639.0,87638.0,0.38352]
[1765904140832,0.36854324,87639.0,87638.0,0.394933]
[1765904143535,0.36854324,87639.0,87638.0,0.43582832]
[1765904144346,8.324e-05,87639.0,87638.0,0.43582832]
[1765904144541,8.324e-05,87639.0,87638.0,0.394933]
[1765904146240,8.324e-05,87639.0,87638.0,0.38352]
[1765904146442,8.324e-05,87639.0,87638.0,0.002]
[1765904146443,0.72934324,87639.0,87638.0,0.002]
[1765904153545,0.74075614,87639.0,87638.0,0.002]
[1765904155543,1.45839614,87639.0,87638.0,0.38352]
[1765904157749,8.324e-05,87639.0,87638.0,0.38352]
[1765904158451,0.29803,87656.0,87655.0,0.3929308]
[1765904158644,0.18659,87656.0,87655.0,0.3929308]
[1765904158959,0.3798706,87657.0,87656.0,0.38152]
[1765904159657,0.1979999,87663.0,87662.0,0.38152]
[1765904160240,0.00017114,87665.0,87664.0,0.38152]
[1765904160445,0.18676114,87665.0,87664.0,0.38152]
[1765904160645,0.18676114,87665.0,87655.0,0.030763]
[1765904160646,0.3798707,87656.0,87655.0,0.030763]
[1765904160852,0.36846,87654.0,87653.0,0.784494]
[1765904161147,0.3798704,87659.0,87658.0,0.38152]
[1765904162055,0.3798712,87652.0,87651.0,0.03075048]
[1765904162248,0.3798716,87649.0,87646.0,0.0114119]
[1765904162555,0.3798716,87649.0,87644.0,0.3608]
[1765904162556,0.3798716,87649.0,87648.0,0.19053114]
[1765904163140,0.3798716,87649.0,87648.0,0.38169114]
[1765904163352,0.002,87659.0,87656.0,0.38152]
[1765904163353,0.3798706,87657.0,87656.0,0.38152]
[1765904163553,0.004,87659.0,87658.0,0.38152]
[1765904163759,0.19059,87659.0,87658.0,0.38152]
[1765904164150,0.18659,87659.0,87658.0,0.38152]
[1765904164666,0.3608,87660.0,87659.0,0.3637303]
[1765904165354,0.3608,87660.0,87649.0,0.22938779]
[1765904165355,0.35416,87649.0,87645.0,0.03075048]
[1765904165560,0.7263716,87649.0,87636.0,0.03075048]
[1765904165855,0.7263716,87649.0,87633.0,0.03075048]
[1765904166046,0.7263716,87649.0,87648.0,1.14e-06]
[1765904166858,0.7263716,87649.0,87648.0,0.17799114]
[1765904167050,0.3732116,87649.0,87648.0,1.14e-06]
[1765904167453,0.3742116,87649.0,87648.0,1.14e-06]
[1765904168147,0.7283716,87649.0,87648.0,0.35232114]
[1765904169359,0.002,87649.0,87648.0,0.35232114]
[1765904170054,0.002,87649.0,87648.0,1.14e-06]
[1765904170745,0.002,87649.0,87648.0,0.35232114]
[1765904172761,0.35433114,87665.0,87664.0,0.35232]
[1765904173058,0.71513114,87665.0,87664.0,0.35232]
[1765904173254,0.71513114,87665.0,87648.0,0.04101847]
[1765904173255,0.0114116,87649.0,87648.0,1.14e-06]
[1765904175760,0.0134116,87649.0,87648.0,1.14e-06]
[1765904175959,0.7308916,87649.0,87648.0,1.14e-06]
[1765904177064,1.0850516,87649.0,87648.0,0.35232114]
[1765904177451,1.0850516,87649.0,87648.0,0.17799114]
[1765904177760,1.0850516,87649.0,87648.0,0.35232114]
[1765904178757,1.0850516,87649.0,87648.0,1.14e-06]
[1765904178758,0.7308916,87649.0,87648.0,1.14e-06]
[1765904180364,0.7308916,87649.0,87648.0,0.17799114]
[1765904180560,1.0850516,87649.0,87648.0,0.35232114]
[1765904181463,0.7308916,87649.0,87648.0,1.14e-06]
[1765904183359,0.3675716,87649.0,87648.0,0.35232114]
[1765904183560,0.002,87649.0,87648.0,0.35232114]
[1765904183751,0.002,87649.0,87648.0,0.38303447]
[1765904183956,0.002,87649.0,87648.0,0.35232114]
[1765904185360,0.002,87649.0,87648.0,0.41384714]
[1765904185566,0.002,87649.0,87648.0,0.35232114]
[1765904186156,0.002,87649.0,87648.0,0.41384714]
[1765904186352,0.002,87649.0,87648.0,0.35232114]
[1765904186568,0.002,87649.0,87648.0,0.41380474]
[1765904187266,0.002,87649.0,87648.0,0.35232114]
[1765904187664,0.002,87649.0,87648.0,0.41380702]
[1765904187963,0.002,87649.0,87648.0,0.35232114]
[1765904188163,0.00017114,87665.0,87664.0,0.35232]
[1765904188365,0.00017114,87665.0,87664.0,0.7245297]
[1765904188561,0.00017114,87665.0,87664.0,0.75526718]
[1765904188865,0.00017114,87665.0,87664.0,0.7245297]
[1765904189370,0.17841,87684.0,87682.0,0.0114072]
[1765904189563,0.17841,87684.0,87683.0,0.35232]
[1765904190067,0.10626,87687.0,87686.0,0.35232]
[1765904191468,0.46042,87687.0,87686.0,0.35232]
[1765904191869,0.28467,87687.0,87686.0,0.35232]
[1765904192068,0.28467,87687.0,87686.0,0.35332]
[1765904192479,0.365566,87693.0,87692.0,0.35232]
[1765904192773,0.35416,87693.0,87692.0,0.35232]
[1765904193472,0.0114058,87694.0,87693.0,0.35232]
[1765904193767,0.1898158,87694.0,87693.0,0.35232]
[1765904194170,0.3580158,87694.0,87693.0,0.35232]
[1765904195969,0.3401763,87690.0,87689.0,0.33285]
[1765904196174,0.1790363,87690.0,87689.0,0.33285]
[1765904196375,0.3401763,87690.0,87689.0,0.33285]
[1765904197579,0.3401763,87690.0,87689.0,0.33385]
[1765904199174,0.3401763,87690.0,87689.0,0.001]
[1765904199380,0.3401763,87690.0,87689.0,0.33385]
[1765904200280,0.32877,87690.0,87689.0,0.33385]
[1765904200678,0.32877,87690.0,87689.0,0.33285]
[1765904200879,0.32977,87690.0,87689.0,0.33285]
[1765904201380,0.3401759,87694.0,87693.0,0.3442559]
[1765904203983,0.32877,87694.0,87693.0,0.3442559]
[1765904206682,0.32877,87694.0,87693.0,0.33285]
[1765904209581,0.3401767,87687.0,87686.0,0.3608]